fUST/lending_fUST_20240510
["ID","MTS","AMOUNT","RATE_DAILY","PERIOD"]
[326708821,1715275845062,-670.64155101,0.0007987,3]
[326708837,1715275848232,-1308.83844899,0.0007987,3]
[326708838,1715275848242,-344.91155101,0.0007988,120]
[326709160,1715275914703,621.5,0.00054795,120]
[326709278,1715275919139,150.0,0.00025931,5]
[326709378,1715275923328,150.1,0.00054795,120]
[326715054,1715276215338,4909.92892707,0.000125,2]
[326715055,1715276327764,-166.562438,0.0001589,2]
[326715056,1715276327816,-3870.88852909,0.0002,2]
[326715057,1715276327869,-2305.85115943,0.000205,5]
[326715058,1715276327923,-1001.23720707,0.00023,2]
[326715059,1715276327977,-916.89419024,0.000399,2]
[326715060,1715276328029,-26739.13404591,0.0004,2]
[326715061,1715276328081,-622.46073307,0.0004,120]
[326715062,1715276328132,-44658.36359772,0.0004,7]
[326715063,1715276328185,-151.0,0.00045,120]
[326715064,1715276840171,-165.248838,0.0001589,2]
[326715065,1715276840192,-151.0,0.00045,120]
[326715066,1715276840214,-151.0,0.00054,120]
[326715067,1715276840236,-621.5,0.00054795,120]
[326715068,1715276840256,-150.1,0.00054795,120]
[326715069,1715276840276,-151.0,0.00063014,120]
[326715070,1715276840296,-151.0,0.00072027,120]
[326715071,1715276840317,-1870.24,0.00075,120]
[326715072,1715276840339,-2000.0,0.00075,120]
[326715073,1715276840358,-166.666666,0.00076712,120]
[326715074,1715276840380,-500.0,0.00078999,120]
[326715075,1715276840399,-150.0,0.0007928,118]
[326715076,1715276840419,-487.27089649,0.00079587,60]
[326715077,1715276840440,-1000.0,0.00079642,60]
[326715078,1715276840461,-380.10449268,0.00079721,60]
[326715079,1715276959098,-151.0,0.00045,120]
[326715080,1715276959119,-151.0,0.00060027,120]
[326715081,1715276982034,166.394239,0.00053364,2]
[326715082,1715277019579,621.5,0.00054795,120]
[326715083,1715277027626,150.1,0.00054795,120]
[326715084,1715277027667,151.0,0.0005,120]
[326715085,1715277032518,-151.0,0.00073616,120]
[326715087,1715277032528,-2784.609999,0.00075,120]
[326715090,1715277032537,-151.0,0.00075041,120]
[326715092,1715277032546,-619.89550732,0.00079721,60]
[326715093,1715277032556,-802.28241646,0.00079789,28]
[326715095,1715277032566,-238.3393,0.00079792,2]
[326715097,1715277032575,-197.30379845,0.00079796,2]
[326715099,1715277032584,-1798.0,0.00079797,85]
[326715101,1715277032593,-1000.0,0.00079816,60]
[326715103,1715277032602,-466.94535979,0.00079877,7]
[326715105,1715277032611,-345.5106623,0.00079878,7]
[326715107,1715277032620,-53210.33233861,0.0007988,120]
[326715161,1715277039103,-228344.95520214,0.0007988,120]
[326715163,1715277039114,-18451.21405346,0.0007988,120]
[326715180,1715277042050,-2143.06726997,0.0007988,120]
[326715259,1715277044792,-213933.12715678,0.0007988,120]
[326715959,1715277063367,1400.34943424,0.00020913,2]
[326715960,1715277075074,621.5,0.00054795,120]
[326715961,1715277096841,7028.1858634,0.0007,120]
[326715962,1715277112465,621.5,0.00065753,120]
[326715963,1715277125142,621.5,0.00065753,120]
[326715964,1715277130618,158.7684934,0.0001589,2]
[326715965,1715277141163,962.90174546,0.0005,60]
[326715967,1715278028317,-165.696065,0.0001589,2]
[326715968,1715278028345,-225.0,0.00021918,2]
[326715969,1715278028373,-1881.46757,0.00034114,4]
[326715970,1715278028398,-166.666667,0.00034115,2]
[326715971,1715278028428,-10000.0,0.0004,45]
[326715972,1715278028452,-10115.278,0.000425,45]
[326715973,1715278028482,-701.99711442,0.000449,28]
[326715974,1715278028505,-10000.0,0.00045,50]
[326715975,1715278028529,-151.0,0.00045,120]
[326715976,1715278028550,-154.65974855,0.000459,4]
[326715977,1715278028574,-165.696065,0.00046164,2]
[326715978,1715278028597,-10000.0,0.000475,55]
[326715979,1715278028620,-154.69061876,0.0005,4]
[326715980,1715278028642,-154.69061876,0.0005,30]
[326715981,1715278028665,-10000.0,0.0005,60]
[326715982,1715278028688,-166.39424,0.0005027,2]
[326715983,1715278028712,-151.0,0.00051452,120]
[326715984,1715278028734,-10000.0,0.000525,65]
[326715985,1715278028755,-10000.0,0.00055,75]
[326715986,1715278028778,-10000.0,0.000575,70]
[326715987,1715278028800,-151.0,0.0005789,120]
[326715988,1715278028823,-10000.0,0.0006,90]
[326715989,1715278028847,-24007.29114793,0.000625,61]
[326715990,1715278028870,-10000.0,0.000625,90]
[326715991,1715278028892,-151.0,0.00064329,120]
[326715992,1715278028915,-263.0,0.00065753,120]
[326715993,1715278028938,-543.68,0.000686,60]
[326715994,1715278028961,-150.0,0.00069,120]
[326715995,1715278028984,-1851.25643689,0.0006998,120]
[326715996,1715278029009,-151.0,0.00070767,120]
[326715997,1715278029137,-189.30448835,0.00071807,2]
[326715998,1715278029164,-769.81891506,0.00071907,60]
[326715999,1715278029189,-165.696065,0.00076438,120]
[326716000,1715278029211,-166.666666,0.00076712,120]
[326716001,1715278029234,-151.0,0.00077205,120]
[326716002,1715278029256,-461.2961289,0.00079452,120]
[326716003,1715278029280,-20214.04929505,0.0007948,120]
[326716004,1715278029346,-254.4836156,0.0005,120]
[326716005,1715278029369,-152426.9308344,0.0007948,120]
[326716006,1715278033148,-441.1439943,0.0007948,120]
[326716007,1715278034102,-1236.65121891,0.0007948,120]
[326716008,1715278050141,-11199.57104,0.0007948,120]
[326716020,1715278145131,-174.29489,0.0001589,2]
[326716021,1715278145154,-151.0,0.00045,120]
[326716022,1715278145175,-151.0,0.00056274,120]
[326716023,1715278145195,-151.0,0.00067534,120]
[326716027,1715278226970,151.0,0.0005,120]
[326716033,1715278233578,-151.0,0.00074274,120]
[326716035,1715278233588,-174.29489,0.00076438,120]
[326716037,1715278233597,-166.666666,0.00076712,120]
[326716039,1715278233606,-166.666667,0.00076712,120]
[326716041,1715278233615,-151.0,0.00078795,120]
[326716044,1715278233625,-155.63834252,0.00079391,2]
[326716047,1715278233634,-2284.79378847,0.0007943,120]
[326716184,1715278240528,-5348.65,0.0007944,3]
[326716186,1715278240538,-4457.21,0.0007944,3]
[326716188,1715278240549,-500.0,0.00079449,120]
[326716190,1715278240558,-500.0,0.00079449,120]
[326716192,1715278240567,-500.0,0.00079449,120]
[326716194,1715278240576,-710.05218087,0.00079449,120]
[326716196,1715278240586,-500.0,0.00079449,120]
[326716198,1715278240595,-710.05218087,0.00079449,120]
[326716200,1715278240605,-500.0,0.00079449,120]
[326716202,1715278240614,-500.0,0.00079449,120]
[326716204,1715278240624,-500.0,0.00079449,120]
[326716206,1715278240634,-710.05218087,0.00079449,120]
[326716208,1715278240644,-500.0,0.00079449,120]
[326716210,1715278240653,-710.05218087,0.00079449,120]
[326716212,1715278240663,-200.4132844,0.00079449,120]
[326716214,1715278240672,-500.0,0.00079449,120]
[326716223,1715278240739,-710.05218087,0.00079449,120]
[326716225,1715278240758,-500.0,0.00079449,120]
[326716227,1715278240768,-710.05218087,0.00079449,120]
[326716229,1715278240778,-544.01466939,0.00079449,120]
[326716231,1715278240787,-500.0,0.00079449,120]
[326716233,1715278240798,-710.05218087,0.00079449,120]
[326716235,1715278240808,-500.0,0.00079449,120]
[326716237,1715278240818,-710.05218087,0.00079449,120]
[326716239,1715278240827,-500.0,0.00079449,120]
[326716241,1715278240837,-114.50705399,0.00079449,120]
[326716266,1715278241093,-595.54512688,0.00079449,120]
[326716268,1715278241104,-215.43980828,0.00079449,120]
[326716280,1715278241637,-494.61237259,0.00079449,120]
[326716281,1715278241647,-500.0,0.00079449,120]
[326716283,1715278241658,-500.0,0.00079449,120]
[326716284,1715278241669,-500.0,0.00079449,120]
[326716285,1715278241680,-500.0,0.00079449,120]
[326716286,1715278241689,-500.0,0.00079449,120]
[326716287,1715278241699,-500.0,0.00079449,120]
[326716288,1715278241710,-500.0,0.00079449,120]
[326716289,1715278241720,-500.0,0.00079449,120]
[326716290,1715278241729,-500.0,0.00079449,120]
[326716291,1715278241740,-500.0,0.00079449,120]
[326716292,1715278241749,-710.05218087,0.00079449,120]
[326716293,1715278241759,-710.05218087,0.00079449,120]
[326716294,1715278241769,-500.0,0.00079449,120]
[326716295,1715278241779,-710.05218087,0.00079449,120]
[326716296,1715278241789,-500.0,0.00079449,120]
[326716297,1715278241800,-500.0,0.00079449,120]
[326716298,1715278241810,-710.05218087,0.00079449,120]
[326716299,1715278241820,-710.05218087,0.00079449,120]
[326716300,1715278241830,-710.05218087,0.00079449,120]
[326716301,1715278241840,-710.05218087,0.00079449,120]
[326716302,1715278241850,-710.05218087,0.00079449,120]
[326716303,1715278241860,-710.05218087,0.00079449,120]
[326716304,1715278241870,-710.05218087,0.00079449,120]
[326716305,1715278241880,-710.05218087,0.00079449,120]
[326716306,1715278241890,-710.05218087,0.00079449,120]
[326716307,1715278241900,-465.34348512,0.00079449,120]
[326716308,1715278241914,-244.70869575,0.00079449,120]
[326716309,1715278241924,-710.05218087,0.00079449,120]
[326716310,1715278241933,-710.05218087,0.00079449,120]
[326716311,1715278241943,-710.05218087,0.00079449,120]
[326716312,1715278241953,-710.05218087,0.00079449,120]
[326716313,1715278241963,-710.05218087,0.00079449,120]
[326716314,1715278241972,-710.05218087,0.00079449,120]
[326716315,1715278241982,-710.05218087,0.00079449,120]
[326716316,1715278241991,-710.05218087,0.00079449,120]
[326716317,1715278242001,-710.05218087,0.00079449,120]
[326716318,1715278242011,-710.05218087,0.00079449,120]
[326716319,1715278242021,-710.05218087,0.00079449,120]
[326716320,1715278242030,-710.05218087,0.00079449,120]
[326716321,1715278242041,-710.05218087,0.00079449,120]
[326716322,1715278242052,-710.05218087,0.00079449,120]
[326716323,1715278242062,-710.05218087,0.00079449,120]
[326716324,1715278242074,-710.05218087,0.00079449,120]
[326716325,1715278242083,-39394.45641033,0.0007945,120]
[326716443,1715278248979,-166809.77638967,0.0007945,120]
[326716446,1715278248989,-2318.1730008,0.00079491,7]
[326716449,1715278248998,-189.23692653,0.00079492,7]
[326716452,1715278249007,-160.0,0.000798,60]
[326716454,1715278249016,-55555.0,0.000798,120]
[326716455,1715278249025,-169.0,0.0007984,119]
[326716457,1715278249035,-500.0,0.00079887,120]
[326716459,1715278249044,-231.79099983,0.00079887,7]
[326716460,1715278249055,-1135.06325195,0.00079887,7]
[326716461,1715278249065,-187.87636851,0.00079887,7]
[326716462,1715278249076,-1049.59457327,0.00079887,7]
[326716463,1715278249092,-549.86052927,0.00079887,7]
[326716464,1715278249106,-1980.598515,0.00079887,2]
[326716465,1715278249117,-194.01502921,0.00079887,7]
[326716466,1715278249126,-940.61834724,0.00079887,7]
[326716467,1715278249136,-315.15765538,0.00079887,7]
[326716468,1715278249146,-816.36499796,0.00079887,2]
[326716469,1715278249158,-328.56557482,0.00079888,7]
[326716470,1715278249167,-190.45031559,0.00079888,7]
[326716471,1715278249177,-245.66418244,0.00079888,7]
[326716472,1715278249187,-9383.69161612,0.00079888,7]
[326716473,1715278249196,-893.87701251,0.00079889,30]
[326716474,1715278249206,-2000.0,0.0007989,120]
[326716475,1715278249216,-189.65271409,0.00079897,2]
[326716476,1715278249225,-181.99841044,0.00079897,7]
[326716477,1715278249236,-154.69061876,0.00079897,7]
[326716478,1715278249246,-154.69061876,0.00079897,7]
[326716479,1715278249255,-3090.44437915,0.00079899,30]
[326716480,1715278249265,-195.17500475,0.000799,120]
[326716481,1715278249275,-195.17500475,0.000799,120]
[326716482,1715278249284,-195.67,0.000799,120]
[326716483,1715278249396,-156.2400038,0.000799,120]
[326716484,1715278249406,-156.2400038,0.000799,120]
[326716485,1715278249415,-156.2400038,0.000799,120]
[326716486,1715278249424,-156.2400038,0.000799,120]
[326716487,1715278249434,-156.2400038,0.000799,120]
[326716488,1715278249443,-156.2400038,0.000799,120]
[326716489,1715278249452,-156.2400038,0.000799,120]
[326716490,1715278249462,-156.2400038,0.000799,120]
[326716491,1715278249471,-156.2400038,0.000799,120]
[326716492,1715278249480,-156.2400038,0.000799,120]
[326716493,1715278249489,-156.2400038,0.000799,120]
[326716494,1715278249498,-156.2400038,0.000799,120]
[326716495,1715278249508,-156.2400038,0.000799,120]
[326716496,1715278249517,-156.2400038,0.000799,120]
[326716497,1715278249526,-156.74,0.000799,120]
[326716498,1715278249535,-150.11521471,0.000799,120]
[326716499,1715278249545,-150.11521471,0.000799,120]
[326716500,1715278249555,-150.11521471,0.000799,120]
[326716501,1715278249565,-150.11521471,0.000799,120]
[326716502,1715278249574,-150.11521471,0.000799,120]
[326716503,1715278249585,-150.11521471,0.000799,120]
[326716504,1715278249595,-150.11521471,0.000799,120]
[326716505,1715278249604,-150.11521471,0.000799,120]
[326716506,1715278249613,-150.11521471,0.000799,120]
[326716507,1715278249622,-150.61,0.000799,120]
[326716508,1715278249632,-300.30542942,0.000799,120]
[326716509,1715278249641,-300.30542942,0.000799,120]
[326716510,1715278249650,-300.30542942,0.000799,120]
[326716511,1715278249659,-300.30542942,0.000799,120]
[326716512,1715278249668,-300.30542942,0.000799,120]
[326716513,1715278249677,-300.30542942,0.000799,120]
[326716514,1715278249686,-300.30542942,0.000799,120]
[326716515,1715278249696,-300.30542942,0.000799,120]
[326716516,1715278249705,-300.30542942,0.000799,120]
[326716517,1715278249714,-300.30542942,0.000799,120]
[326716518,1715278249723,-300.30542942,0.000799,120]
[326716519,1715278249732,-300.30542942,0.000799,120]
[326716520,1715278249742,-300.30542942,0.000799,120]
[326716521,1715278249751,-300.30542942,0.000799,120]
[326716522,1715278249761,-300.30542942,0.000799,120]
[326716523,1715278249770,-300.30542942,0.000799,120]
[326716524,1715278249779,-300.30542942,0.000799,120]
[326716525,1715278249788,-300.30542942,0.000799,120]
[326716526,1715278249797,-300.30542942,0.000799,120]
[326716527,1715278249808,-300.8,0.000799,120]
[326716528,1715278249817,-150.0,0.00079969,120]
[326716529,1715278249829,-187.13,0.0007997,35]
[326716530,1715278249852,-150.0,0.00079977,120]
[326716531,1715278249867,-8585.04600272,0.00079978,120]
[326716532,1715278249885,-1630.7881973,0.00079978,7]
[326716533,1715278249905,-200.0,0.00079978,14]
[326716534,1715278249926,-150.5,0.0007998,35]
[326716535,1715278249943,-38842.27501687,0.0007999,30]
[326716536,1715278249996,-90.2313049,0.0007999,30]
[326716537,1715278338593,569.62485281,0.0005,7]
[326716538,1715279229276,-166.261393,0.0001589,2]
[326716539,1715279229297,-151.0,0.00045,120]
[326716540,1715279229317,-154.69061876,0.0005,30]
[326716541,1715279229337,-3356.92395992,0.0005,60]
[326716542,1715279229357,-151.0,0.0005,120]
[326716543,1715279229382,-166.666666,0.00050107,2]
[326716544,1715279229403,-166.394239,0.00053277,2]
[326716545,1715279229425,-218.609004,0.0005358,2]
[326716546,1715279229449,-151.0,0.00056274,120]
[326716547,1715279229471,-166.666666,0.00056938,2]
[326716548,1715279229492,-311.2,0.00065753,120]
[326716549,1715279229513,-151.0,0.00067534,120]
[326716550,1715279229535,-151.0,0.00074274,120]
[326716551,1715279229555,-494.0,0.00076406,120]
[326716552,1715279229577,-150.0,0.00076406,120]
[326716553,1715279229600,-166.666666,0.00076712,120]
[326716554,1715279229621,-1000.0,0.00077,77]
[326716555,1715279229644,-151.0,0.00078795,120]
[326716556,1715279229666,-494.0,0.00079406,120]
[326716557,1715279229776,-150.0,0.00079406,120]
[326716558,1715279229797,-622.11384583,0.00079448,7]
[326716559,1715279229817,-1465.08143486,0.000795,120]
[326716560,1715279229838,-500.0,0.00079889,120]
[326716561,1715279229858,-261197.17570784,0.0007989,120]
[326716562,1715279232163,-1048.15998738,0.0007989,120]
[326716563,1715279237110,-7052.25966526,0.0007989,120]
[326716566,1715279361114,-166.666666,0.00048026,2]
[326716567,1715279361145,-839.23098998,0.0005,60]
[326716568,1715279361179,-417.3,0.00065753,120]
[326716569,1715279420861,1000.0,0.0006,90]
[326716570,1715279425571,492.0,0.00045,120]
[326716571,1715279427400,3000.0,0.00065753,2]
[326716572,1715279433425,-494.0,0.00076406,120]
[326716575,1715279433435,-491.047,0.00079406,120]
[326716578,1715279433444,-2419.02973286,0.00079799,7]
[326716581,1715279433454,-500.0,0.00079889,120]
[326716584,1715279433467,-600.37913429,0.00079889,120]
[326716587,1715279433477,-500.0,0.00079889,120]
[326716590,1715279433486,-521.03184138,0.00079889,120]
[326716592,1715279433495,-500.0,0.00079889,120]
[326716594,1715279433510,-500.0,0.00079889,120]
[326716596,1715279433519,-500.0,0.00079889,120]
[326716598,1715279433528,-521.03184138,0.00079889,120]
[326716600,1715279433538,-500.0,0.00079889,120]
[326716602,1715279433550,-521.03184138,0.00079889,120]
[326716603,1715279433561,-500.0,0.00079889,120]
[326716604,1715279433571,-172.08678972,0.00079889,120]
[326716605,1715279433581,-521.03184138,0.00079889,120]
[326716606,1715279433593,-313.20440081,0.00079889,120]
[326716607,1715279433603,-500.0,0.00079889,120]
[326716608,1715279433613,-521.03184138,0.00079889,120]
[326716609,1715279433623,-500.0,0.00079889,120]
[326716610,1715279433633,-500.0,0.00079889,120]
[326716611,1715279433643,-521.03184138,0.00079889,120]
[326716612,1715279433652,-277.08760035,0.00079889,120]
[326716613,1715279433662,-521.03184138,0.00079889,120]
[326716614,1715279433672,-500.0,0.00079889,120]
[326716615,1715279433682,-521.03184138,0.00079889,120]
[326716616,1715279433692,-500.0,0.00079889,120]
[326716617,1715279433702,-521.03184138,0.00079889,120]
[326716618,1715279433711,-500.0,0.00079889,120]
[326716619,1715279433720,-521.03184138,0.00079889,120]
[326716621,1715279433732,-521.03184138,0.00079889,120]
[326716623,1715279433741,-288.0371956,0.00079889,120]
[326716625,1715279433750,-521.03184138,0.00079889,120]
[326716626,1715279433760,-521.03184138,0.00079889,120]
[326716628,1715279433770,-500.0,0.00079889,120]
[326716630,1715279433779,-521.03184138,0.00079889,120]
[326716632,1715279433788,-500.0,0.00079889,120]
[326716634,1715279433798,-521.03184138,0.00079889,120]
[326716636,1715279433808,-521.03184138,0.00079889,120]
[326716645,1715279433817,-521.03184138,0.00079889,120]
[326716648,1715279433910,-521.03184138,0.00079889,120]
[326716650,1715279433920,-521.03184138,0.00079889,120]
[326716652,1715279433930,-521.03184138,0.00079889,120]
[326716654,1715279433939,-521.03184138,0.00079889,120]
[326716656,1715279433949,-521.03184138,0.00079889,120]
[326716657,1715279433959,-521.03184138,0.00079889,120]
[326716659,1715279433969,-521.03184138,0.00079889,120]
[326716661,1715279433980,-521.03184138,0.00079889,120]
[326716663,1715279433989,-521.03184138,0.00079889,120]
[326716664,1715279433999,-521.03184138,0.00079889,120]
[326716665,1715279434009,-521.03184138,0.00079889,120]
[326716666,1715279434019,-521.03184138,0.00079889,120]
[326716667,1715279434029,-521.03184138,0.00079889,120]
[326716668,1715279434039,-521.03184138,0.00079889,120]
[326716669,1715279434049,-521.03184138,0.00079889,120]
[326716670,1715279434058,-31981.27553815,0.0007989,120]
[326716671,1715279434196,-622.11384583,0.0007989,120]
[326716672,1715279434208,-6652.17199174,0.0007989,120]
[326716673,1715279434220,-2279.05142821,0.0007989,120]
[326716820,1715279440534,-150.0,0.00072982,120]
[326716831,1715279440623,-1525.89,0.0007988,3]
[326716859,1715279441603,-499.77566816,0.0007988,3]
[326716860,1715279441620,-1688.67433184,0.0007988,3]
[326716861,1715279441632,-521.03184138,0.00079889,120]
[326716862,1715279441643,-521.03184138,0.00079889,120]
[326716863,1715279441654,-521.03184138,0.00079889,120]
[326716864,1715279441664,-521.03184138,0.00079889,120]
[326716865,1715279441674,-521.03184138,0.00079889,120]
[326716866,1715279441684,-521.03184138,0.00079889,120]
[326716867,1715279441694,-521.03184138,0.00079889,120]
[326716868,1715279441704,-521.03184138,0.00079889,120]
[326716869,1715279441714,-175.46093712,0.00079889,120]
[326716870,1715279441937,-345.57090426,0.00079889,120]
[326716871,1715279441946,-521.03184138,0.00079889,120]
[326716872,1715279441955,-521.03184138,0.00079889,120]
[326716873,1715279441965,-521.03184138,0.00079889,120]
[326716874,1715279441974,-521.03184138,0.00079889,120]
[326716875,1715279441984,-521.03184138,0.00079889,120]
[326716876,1715279441993,-521.03184138,0.00079889,120]
[326716877,1715279442003,-521.03184138,0.00079889,120]
[326716878,1715279442013,-521.03184138,0.00079889,120]
[326716879,1715279442022,-521.03184138,0.00079889,120]
[326716880,1715279442032,-521.03184138,0.00079889,120]
[326716881,1715279442041,-521.03184138,0.00079889,120]
[326716882,1715279442051,-521.03184138,0.00079889,120]
[326716883,1715279442061,-521.03184138,0.00079889,120]
[326716884,1715279442070,-1770.46489616,0.0007989,120]
[326716951,1715279445392,1196.16190186,0.00065753,2]
[326717146,1715279447469,-345002.88084162,0.0007989,120]
[326717147,1715279447482,-30094.87500004,0.0007989,120]
[326717170,1715279447796,-237.7,0.0007988,3]
[326717171,1715279447807,-2651.60834151,0.0007988,3]
[326717172,1715279447819,-205.97165849,0.0007988,3]
[326717173,1715279447828,-17078.42282596,0.0007989,120]
[326717205,1715279489431,2000.0,0.0007,90]
[326717206,1715279538941,151.0,0.00045,120]
[326717220,1715280333129,-162.008665,0.0001589,2]
[326717221,1715280333150,-225.0,0.00021918,2]
[326717222,1715280333170,-1000.0,0.000374,24]
[326717223,1715280333190,-166.666666,0.00040329,2]
[326717224,1715280333213,-750.8045141,0.00044685,2]
[326717225,1715280333233,-334.1067388,0.00045538,2]
[326717226,1715280333253,-153.0,0.00045538,2]
[326717227,1715280333274,-153.0,0.00045538,2]
[326717228,1715280333374,-153.0,0.00045538,2]
[326717229,1715280333394,-306.6297424,0.00045538,2]
[326717230,1715280333415,-153.0,0.00045538,2]
[326717231,1715280333437,-153.0,0.00045538,2]
[326717232,1715280333459,-153.0,0.00045538,2]
[326717233,1715280333480,-166.666666,0.00045827,2]
[326717234,1715280333500,-375.053375,0.0004934,2]
[326717235,1715280333520,-291.39771783,0.0005,30]
[326717236,1715280333541,-1011.30002229,0.000587,60]
[326717237,1715280333562,-671.6679891,0.0006,12]
[326717238,1715280333581,-3386.87577788,0.0007,90]
[326717239,1715280442105,-154.5618725,0.0004581,2]
[326717240,1715280442127,-1613.12422212,0.0007,90]
[326717241,1715280442151,-375.053375,0.0007401,30]
[326717242,1715280442173,-166.666666,0.00076712,120]
[326717243,1715280442194,-4010.295481,0.00077,90]
[326717244,1715280442215,-5000.0,0.00078,90]
[326717245,1715280442238,-5000.0,0.00079,90]
[326717246,1715280442260,-380.96526966,0.00079889,7]
[326717247,1715280442281,-262587.50243408,0.0007989,120]
[326717248,1715280546095,-3054.49300388,0.00034535,30]
[326717249,1715280553114,-15947.16619612,0.00034535,30]
[326717250,1715280553136,-302.0,0.00045,120]
[326717251,1715280553155,-153.0,0.0004581,2]
[326717252,1715280553177,-154.4626503,0.0004581,2]
[326717253,1715280553275,-1712.49299907,0.0005,60]
[326717337,1715280647131,-1465.55583977,0.00020913,2]
[326717338,1715280647142,-225.0,0.00021918,2]
[326717339,1715280647152,-167.07450764,0.00025204,2]
[326717340,1715280647162,-150.0,0.000266,2]
[326717341,1715280647173,-398.2,0.00026697,5]
[326717342,1715280647183,-447.59882745,0.00032272,4]
[326717343,1715280647192,-3534.11515103,0.00035258,4]
[326717344,1715280647201,-442.3324663,0.00035259,4]
[326717345,1715280647210,-169.629125,0.00043975,2]
[326717346,1715280647219,-189.30448835,0.0004571,2]
[326717347,1715280647228,-153.0,0.0004581,2]
[326717348,1715280647237,-153.0,0.0004581,2]
[326717349,1715280647246,-153.0,0.0004581,2]
[326717350,1715280647256,-398.2,0.00048634,60]
[326717351,1715280647265,-1080.22452801,0.0005,60]
[326717404,1715281092280,527.63757821,9.999e-05,2]
[326717491,1715281358017,1400.34943424,9.999e-05,2]
[326717494,1715281767151,-1400.34943424,0.00015889,2]
[326717495,1715281767299,-159.433101,0.0001589,2]
[326717496,1715281767322,-186.565195,0.0001589,2]
[326717497,1715281767344,-548.31096976,0.00018932,2]
[326717498,1715281832909,-166.261393,0.0001589,2]
[326717500,1715281832919,-172.66021843,0.00018832,2]
[326717501,1715281832928,-156.6698476,0.000189,2]
[326717502,1715281832937,-4218.88924077,0.00018932,2]
[326717504,1715281832949,-20132.79978947,0.00018932,2]
[326717506,1715281832958,-520.5944527,0.0001937,2]
[326717508,1715281832967,-735.970685,0.00019677,2]
[326717509,1715281832977,-2630.824007,0.00019834,2]
[326717510,1715281832986,-1332.9954288,0.00020492,2]
[326717511,1715281832995,-166.394239,0.00020592,2]
[326717512,1715281833004,-352.82312654,0.00020912,2]
[326717513,1715281833014,-1400.34943424,0.00020912,2]
[326717514,1715281833023,-166.666666,0.00021918,2]
[326717515,1715281833031,-166.666666,0.00022431,2]
[326717516,1715281833041,-166.666666,0.00022944,2]
[326717517,1715281833050,-714.82665538,0.00023455,2]
[326717518,1715281833059,-166.666666,0.00023456,2]
[326717520,1715281833069,-156.6698476,0.000239,2]
[326717522,1715281833078,-159.433101,0.00023963,2]
[326717524,1715281833089,-166.666666,0.00023969,2]
[326717526,1715281833100,-166.666666,0.00024482,2]
[326717528,1715281833109,-851.00000001,0.000266,2]
[326717530,1715281833118,-357.7,0.00026745,5]
[326717532,1715281833127,-150.0,0.00026766,5]
[326717534,1715281833136,-156.6698476,0.000289,2]
[326717536,1715281833147,-735.970685,0.00029515,2]
[326717538,1715281833161,-17194.87408336,0.0003,10]
[326717540,1715281833171,-159.433101,0.00032037,2]
[326717542,1715281833180,-466.94535979,0.00035259,4]
[326717544,1715281833190,-159.433101,0.0004011,2]
[326717545,1715281833199,-153.0,0.00044988,2]
[326717547,1715281833209,-306.0,0.00044988,2]
[326717549,1715281833218,-10000.0,0.00045,45]
[326717551,1715281833228,-151.0,0.00045,120]
[326717553,1715281833238,-153.0,0.00045262,2]
[326717555,1715281833248,-306.0,0.00045262,2]
[326717557,1715281833257,-153.0,0.00045556,2]
[326717559,1715281833267,-159.433101,0.00048183,2]
[326717561,1715281833276,-151.0,0.00048192,120]
[326717563,1715281833285,-357.7,0.00048677,60]
[326717565,1715281833295,-150.0,0.00048696,60]
[326717567,1715281833305,-243.79526758,0.00049899,2]
[326717569,1715281833314,-172.66021843,0.000499,2]
[326717571,1715281833323,-500.0,0.00049999,120]